Cogmind - Beta 13 @@@ ROGUE MODE // 2024.07.23 @ 13:50:19 Player: polar Result: Destroyed by as-80896 with Assembled Rifle Performance ------------- Evolutions (0) 0 Regions Visited (2) 400 Robots Destroyed (28) 140 Value Destroyed (418) 418 Prototype IDs (0) 0 Alien Tech Used (0) 0 Bonus (0) 0 TOTAL SCORE: 958 Bonus ------- None Cogmind --------- Core Integrity 0/250 Matter 257/300 Energy 100/100 System Corruption 0% Temperature Cool (0) Movement Core (1400) Ox27 Location -10/Mines Parts ------- > --- POWER (1) -------- (None) > --- PROPULSION (2) --- (None) > --- UTILITY (2) ------ Huge Storage Unit Seismic Detector > --- WEAPON (2) ------- Assault Rifle > --- INVENTORY (25) --- Ion Engine Light Treads Light Treads Flight Unit Flight Unit Flight Unit Flight Unit Medium Storage Unit Structural Scanner ECM Suite Hacking Suite Mining Claw Peak State ------------ > --- POWER ------------ Light Nuclear Core > --- PROPULSION ------- Light Treads Light Treads > --- UTILITY ---------- Medium Storage Unit Seismic Detector > --- WEAPON ----------- Small Laser Assault Rifle > --- INVENTORY -------- Ion Engine Light Treads Wheel Wheel Flight Unit Huge Storage Unit ECM Suite Hacking Suite Mining Claw [Rating: 10] Favorites ----------- Power Ion Engine Engine Ion Engine Power Core Light Nuclear Core Propulsion Light Treads Treads Light Treads Wheel Wheel Utility Seismic Detector Device Seismic Detector Storage Medium Storage Unit Weapon Small Laser Energy Gun Small Laser Ballistic Gun Assault Rifle Build | -11 -10 -10 ------- Run | Yrd Mat Min Slots Evolved . | . . . Power . | . . . Propulsion . | . . . Utility . | . . . Weapon . | . . . Parts Attached 19 | 8 6 5 Power 3 | 1 2 . Engine 2 | 1 1 . Core 1 | . 1 . Reactor . | . . . Propulsion 7 | 2 1 4 Treads 5 | 2 1 2 Leg . | . . . Wheel 2 | . . 2 Hover . | . . . Flight . | . . . Utility 4 | 2 1 1 Device 1 | 1 . . Storage 3 | 1 1 1 Processor . | . . . Hackware . | . . . Protection . | . . . Artifact . | . . . Weapon 5 | 3 2 . Energy Gun 2 | 2 . . Energy Cannon . | . . . Ballistic Gun 3 | 1 2 . Ballistic Cannon . | . . . Launcher . | . . . Special Weapon . | . . . Impact Weapon . | . . . Slashing Weapon . | . . . Piercing Weapon . | . . . Special Melee Weapon . | . . . Unidentified Prototypes . | . . . Parts Lost 6 | . 1 5 Power 1 | . . 1 Propulsion 3 | . . 3 Utility . | . . . Weapon 2 | . 1 1 Highest Loss Streak 3 | . 1 3 To Critical Strikes . | . . . Average Slot Usage (%) 98 | . 99 87 Engine 10 | . 11 . Core 2 | . 2 8 Treads 26 | . 27 8 Wheel 1 | . . 14 Device 14 | . 14 14 Storage 14 | . 14 14 Energy Gun 16 | . 17 12 Ballistic Gun 11 | . 10 14 Naked Turns . | . . . Heaviest Build 89 | 14 19 89 Greatest Support 40 | 40 40 40 Greatest Overweight (x) 4 | . . 4 Average Overweight (x) . | . . 2 Largest Inventory Capacity 25 | 8 10 25 Average Capacity 10 | 7 9 20 Most Carried 13 | 3 10 13 Average Carried 7 | 1 7 11 Final Capacity 25 | 8 10 25 Final Carried 12 | 2 10 12 Class Distribution -------------------- 84% | Mutant 15% | Scavenger-Mutant Dominant Class ---------------- Mutant | -10/Materials Mutant | -10/Mines Resources | -11 -10 -10 ----------- Run | Yrd Mat Min Matter Collected 454 | 259 132 63 Remotely . | . . . Salvage Created 947 | 68 780 99 Parts 64 | 7 55 2 Haulers Intercepted 2 | . 2 . Recyclers Shooed . | . . . Parts Field Recycled . | . . . Retrieved Matter . | . . . Parts Self-Destructed . | . . . Prevented . | . . . Kills | -11 -10 -10 ------- Run | Yrd Mat Min Combat Hostiles Destroyed 20 | . 13 7 Guns 20 | . 13 7 Classes Destroyed 10 | 1 8 1 Worker 3 | . 3 . Builder 1 | . 1 . Tunneler 3 | 3 . . Hauler 2 | . 2 . Recycler 2 | . 2 . Operator 1 | . 1 . Watcher 1 | . 1 . Swarmer 8 | . 6 2 Grunt 7 | . 7 . Assembled 5 | . . 5 Best Kill Streak 7 | 2 7 4 Combat Bots Only 4 | . 2 4 Max Kills in Single Turn 5 | 1 5 1 Gunslinging . | . . . Exploded . | . . . Melee . | . . . Uniques/NPCs Destroyed . | . . . Combat | -11 -10 -10 -------- Run | Yrd Mat Min Hostile Shots Fired 94 | . 59 35 Missed 21 | . 13 8 Damage Taken 1007 | . 500 507 Core 252 | . 88 164 Absorbed by Shields . | . . . Core Remaining (%) 100 | 100 . . Volleys Fired 83 | 6 56 21 Largest 2 | 2 2 2 Hottest 80 | 80 80 60 Shots Fired 163 | 12 112 39 Gun 163 | 12 112 39 Cannon . | . . . Launcher . | . . . Special . | . . . Kinetic 64 | . 43 21 Thermal 80 | 6 56 18 Explosive . | . . . Electromagnetic 19 | 6 13 . Robot Hit Streak 9 | 2 9 7 Robot Miss Streak 4 | 2 4 3 Penetration Max . | . . . Secondary Targets 2 | . . 2 Max Gunslinging Chain 1 | . . 1 Shots Hit Robots 92 | 6 61 25 Core Hits 57 | 3 40 14 Critical Kills . | . . . Critical Parts Destroyed . | . . . Critical Strikes . | . . . Melee Attacks . | . . . Impact . | . . . Slashing . | . . . Piercing . | . . . Sneak Attacks . | . . . Combat Hostiles . | . . . Follow-up Attacks . | . . . Damage Inflicted 1260 | 74 875 311 Guns 1083 | 74 698 311 Cannons . | . . . Explosions 177 | . 177 . Melee . | . . . Ramming . | . . . Kinetic 400 | . 222 178 Thermal 550 | 20 397 133 Explosive . | . . . Electromagnetic 310 | 54 256 . Impact . | . . . Slashing . | . . . Piercing . | . . . Highest Corruption . | . . . Average Corruption . | . . . Corruption Purged . | . . . Corruption Blocked . | . . . Overload Shots . | . . . Overflow Damage . | . . . Projectiles . | . . . Explosions . | . . . Melee . | . . . Knockbacks . | . . . Impact . | . . . Kinetic . | . . . Secondary . | . . . Self-Inflicted Damage 28 | . 28 . Shots 1 | . 1 . Rammed . | . . . Targets Rammed . | . . . Kicked . | . . . Crushed . | . . . Highest Temperature 144 | 54 144 20 Average Temperature 34 | 23 39 9 Received Heat Transfer 211 | . 171 40 Siege Activations . | . . . Robots Corrupted . | . . . Combat Hostiles . | . . . Parts Fried . | . . . Impact Corruptions . | . . . Robots Melted . | . . . Combat Hostiles . | . . . Parts Melted . | . . . Heat Transferred 1250 | 50 900 300 Parts Sabotaged . | . . . Parts Stolen . | . . . Parts Stripped . | . . . Power Chain Reactions . | . . . Alert | -11 -10 -10 ------- Run | Yrd Mat Min Peak Influence 257 | 15 257 92 Initial 27 | . 9 27 Average 102 | 7 116 67 Maximum Alert Level 1 | . 1 . Low Security (%) 80 | 100 76 100 Level 1 19 | . 23 . Level 2 . | . . . Level 3 . | . . . Level 4 . | . . . Level 5 . | . . . High Security . | . . . Max Security . | . . . Squads Dispatched 4 | . 4 . Investigation 2 | . 2 . Extermination . | . . . Reinforcement 2 | . 2 . Assault . | . . . Garrison . | . . . Intercept . | . . . Searches Triggered . | . . . Construction Impeded . | . . . Haulers Reinforced . | . . . Active Scanning Responses . | . . . Cargo Convoy Interrupts . | . . . Stealth | -11 -10 -10 --------- Run | Yrd Mat Min Distress Signals 2 | . 2 . Communications Jammed . | . . . Distress Signals . | . . . Times Spotted 41 | . 26 15 Peak Tracking Total 16 | . 5 16 Tactical Retreats 4 | . 3 1 Traps | -11 -10 -10 ------- Run | Yrd Mat Min Traps Triggered 2 | . 2 . Indirectly . | . . . Trap Hack Attempts . | . . . Triggered . | . . . Disarmed . | . . . Reprogrammed . | . . . Reused . | . . . Traps Extracted . | . . . Installed . | . . . Triggered . | . . . Machines | -11 -10 -10 ---------- Run | Yrd Mat Min Machines Disabled 1 | . 1 . Max in Single Turn 1 | . 1 . Machines Repaired . | . . . Machines Dismantled . | . . . Machines Sabotaged . | . . . Overloaded Fab Kills . | . . . Hacking | -11 -10 -10 --------- Run | Yrd Mat Min Machines Accessed 7 | . 7 . Terminals 5 | . 5 . Fabricators . | . . . Repair Stations . | . . . Recycling Units 2 | . 2 . Scanalyzers . | . . . Garrison Access . | . . . Total Hacks 18 | . 18 . Successful 8 | . 8 . Failed 9 | . 9 . Catastrophic 1 | . 1 . Database Lockouts 1 | . 1 . Manual 18 | . 18 . Terminals 14 | . 14 . Fabricators . | . . . Repair Stations . | . . . Recycling Units 4 | . 4 . Scanalyzers . | . . . Garrison Access . | . . . Terminal Hacks 4 | . 4 . Part Schematic 1 | . 1 . Robot Analysis 2 | . 2 . Branch Access Points 1 | . 1 . Fabricator Hacks . | . . . Repair Station Hacks . | . . . Recycling Unit Hacks . | . . . Scanalyzer . | . . . Garrison Access Hacks . | . . . Unauthorized Hacks 4 | . 4 . Terminals 3 | . 3 . Botnet 3 | . 3 . Fabricators . | . . . Repair Stations . | . . . Recycling Units 1 | . 1 . Mask 1 | . 1 . Scanalyzers . | . . . Garrison Access . | . . . Data Cores Recovered . | . . . Used . | . . . Hacking Detections 6 | . 6 . Full Trace Events . | . . . Feedback Events . | . . . Feedback Blocked . | . . . Robot Schematics Acquired . | . . . Robots Built . | . . . Authchips . | . . . Time . | . . . Total Robot Build Rating . | . . . Part Schematics Acquired 1 | . 1 . Parts Built . | . . . Authchips . | . . . Time . | . . . Total Part Build Rating . | . . . Parts Repaired . | . . . Time . | . . . Parts Recycled . | . . . Recycled Matter . | . . . Retrieved Matter . | . . . Retrieved Components . | . . . Parts Scanalyzed . | . . . Part Schematics Acquired . | . . . Parts Damaged . | . . . Bothacking | -11 -10 -10 ------------ Run | Yrd Mat Min Used RIF Installer . | . . . Robots Hacked . | . . . Non-combat . | . . . Combat . | . . . Robot Hacks Applied . | . . . Relay Couplers Released . | . . . Fabnet Peak Effective % . | . . . Robots Rewired . | . . . Allies Hacked . | . . . Hacks Repelled . | . . . Allies | -11 -10 -10 -------- Run | Yrd Mat Min Total Allies . | . . . Largest Group . | . . . Highest-Rated Group . | . . . Highest-Rated Ally . | . . . Total Orders . | . . . Ally Attacks . | . . . Total Damage . | . . . Kills . | . . . Allies Corrupted . | . . . Allies Melted . | . . . Intel | -11 -10 -10 ------- Run | Yrd Mat Min Robot Analysis Total 2 | . 2 . Derelict Logs Recovered . | . . . Drone Launches . | . . . Drone Recoveries . | . . . Exploration | -11 -10 -10 ------------- Run | Yrd Mat Min Turns Passed 1629 | 150 1350 129 Spaces Moved 785 | 76 670 39 Core 4 | 4 . . Treads 759 | 72 670 17 Legs . | . . . Wheels 22 | . . 22 Hover . | . . . Flight . | . . . Fastest Speed 50 | 50 160 140 Average Speed 158 | 154 160 148 Slowest Speed 160 | 160 160 160 Overloaded Moves . | . . . Propulsion Burnouts . | . . . Robots Hopped . | . . . Cave-ins Triggered . | . . . Exploration Rate (%) 31 | 4 81 10 Regions Visited 2 Branch Regions 1 Pre-discovered Areas . | . . . Known Exits Taken 1 | . 1 . Unknown Exits Taken 1 | 1 . . Scrap Searched . | . . . Spaces Dug . | . . . Terrain Destroyed . | . . . Melee . | . . . Projectile . | . . . AOE . | . . . Terrain Rammed . | . . . Walls Destroyed . | . . . Machines Disabled . | . . . Actions | -11 -10 -10 --------- Run | Yrd Mat Min Total 1006 | 93 843 70 Wait 96 | . 96 . Move 783 | 75 669 39 Hop . | . . . Pick Up 18 | 3 11 4 Fast Attach 9 | 7 2 . Attach 3 | . 2 1 Detach . | . . . Swap 7 | 1 2 4 Drop 7 | 1 5 1 Fire 83 | 6 56 21 Melee . | . . . Ram . | . . . Kick . | . . . Crush . | . . . Escape Stasis . | . . . Rewire . | . . . Trap . | . . . Miscellaneous . | . . . Route ------- -11/Scrapyard -10/Materials (discovered 3 exits: [*Mat x2] / *Min) -10/Mines History --------- Turn | Location | Event 3 | -11/Scrapyard | Discovered new exit (range 15) 151 | -11/Scrapyard | Entered Materials 304 | -10/Materials | Build established: Mutant 816 | -10/Materials | Discovered new exit (range 14) 972 | -10/Materials | Central database locked down 997 | -10/Materials | Discovered new exit (range 16) 1421 | -10/Materials | Identified exit to Mines 1501 | -10/Materials | Entered Mines 1560 | -10/Mines | Assembled infested the area 1597 | -10/Mines | Core integrity fell below 50% 1615 | -10/Mines | Core integrity fell below 20% 1630 | -10/Mines | Destroyed by as-80896 with Assembled Rifle Last Messages --------------- 01550_ Acquired Flight Unit. 01551_ Acquired 16 matter. 01554_ Acquired Flight Unit. 01560_ ALERT: Infestation in the mines, dispatching Demolisher response squad. 01576_ Wheel destroyed. 01579_ as-49121 destroyed. 01586_ Lgt. Nuclear Core destroyed. 01600_ as-02885 destroyed. 01600_ Switching to secondary target: as-10128. 01601_ Acquired 10 matter. 01604_ as-80673 destroyed. 01613_ as-73049 destroyed. 01613_ Switching to secondary target: as-10128. 01620_ Lgt. Treads destroyed. 01622_ Destroyed Asb. Hover Unit. 01622_ Wheel destroyed. 01622_ Sml. Laser destroyed. 01625_ as-67189 destroyed. 01626_ Acquired 12 matter. Map ----- +----------------------------------------------------+ | | | | | | | | | | | | | | | | | | | | | ?????????????????????????????????? | | ????????????????????###??????????? | | ???????????????????## ####??????? | | ???????????????????# ##?????? | | ???????????????????# ##????? | | ??????????????????## #????? | | ?????????????????## #????? | | ?????????????????# #????? | | ?????????????????# #????? | | ?????????????????# #????? | | ?????????????????## ## ##????? | | ??????????????????# ## ##?????? | | ??????????????????## ### #??????? | | ???????????????????###??# #??????? | | ????????????????????????# #??????? | | ????????????????????????#@#??????? | | ????????????????????????#a#??????? | | ??????????????####??????#a#??????? | | ?????????????## ##?#####a#??????? | | ?????????????# ### a #??????? | | ?????????????# [ #??????? | | ?????????????## ####??????? | | ?????????????## #?????????? | | ???????????### ##?????????? | | ??????????## ##??????????? | | ??????????# ##???????????? | | ??????????## ##????????????? | | ???????????###### #?????????????? | | ????????????????# #?????????????? | | ????????????????# #?????????????? | | ????????????????# #?????????????? | | ????????????????# #?????????????? | | ????????????????# $#?????????????? | | ????????????????# #?????????????? | | ????????????????# #?????????????? | | ????????????????# ??????????????? | | ????????????????## ??????????????? | | ?????????????????? ??????????????? | | ?????????????????? ??????????????? | | ?????????????????? ??????????????? | +----------------------------------------------------+ Best States ------------- Heat Dissipation 25 Energy Generation 14 Energy Capacity 250 Matter Stores 300 Matter Capacity 300 Sight Range 16 Terrain Scan Density 10 Evasion (%) 40 Recoil Reduction 2 Item Schematics ----------------- Cargo Storage Unit | -10/Materials | Hacked Robot Schematics ------------------ None Fabricated ------------ Nothing Alien Tech Used ----------------- None Achievements -------------- None Challenges ------------ None Game ------ Seed BiocellConcussiveClaws Manual? 0 Play Time 00:13:45 Cumulative 252.0 hours Start 2024.07.23 @ 13:37:36 End 2024.07.23 @ 13:50:19 Sessions 1 Manual Loads 0 Difficulty Rogue Special Mode None Game No. 96 Rogue 94 Adventurer 0 Explorer 2 Win Type - Total 7 Types 5/0/1/1/0/0/0/0/0 Lore% 79 Gallery% 80 Achievement% 69 Wizard Run 0 Options --------- Layout 2 ASCII 0 Keyboard 0 Movement Numpad Keybinds 0 Fullscreen 1 Font 24/Smallcaps Map View 50x44 Zoom Use 0% Tactical HUD 1 Map Filters NONE Filters NONE Steam 0 RUN: a77e1d53-732e-4478-9421-f96e75eae9a7